bitfinex-derivatives/quotes_BNBF0:USTF0_20250417
["timestamp","ask_amount","ask_price","bid_price","bid_amount"]
[1744928349288,0.29396361,593.27,591.41,0.31034517]
[1744928349589,0.337126,593.25,591.43,0.33816343]
[1744928349790,0.29790877,593.24,591.44,0.3102099]
[1744928349991,0.33713736,593.23,591.46,0.33814628]
[1744928350188,0.29790877,593.22,591.47,0.3102099]
[1744928350389,0.33714873,593.21,591.49,0.33812913]
[1744928350590,0.29790877,593.2,591.5,0.3102099]
[1744928350785,0.3371601,593.19,591.52,0.33811198]
[1744928350988,0.29790877,593.18,591.53,0.3102099]
[1744928351290,0.63503504,593.17,591.55,0.33809483]
[1744928351486,0.63504073,593.16,591.56,0.31016447]
[1744928351690,0.63504641,593.15,591.58,0.33807769]
[1744928351894,0.6350521,593.14,591.59,0.31016447]
[1744928352094,0.3371942,593.13,591.61,0.33806054]
[1744928352290,0.29786583,593.12,591.62,0.31016669]
[1744928352495,0.33720557,593.11,591.64,0.3380434]
[1744928352696,0.29786583,593.1,591.65,0.31016669]
[1744928352995,0.33721694,593.09,591.66,0.33803197]
[1744928353196,0.29786583,593.08,591.67,0.31016669]
[1744928353493,0.29786583,593.08,591.68,0.33802055]
[1744928353695,0.29369691,593.62,591.69,0.31016669]
[1744928353892,0.33692722,593.6,591.71,0.33800341]
[1744928354091,0.29772798,593.59,591.72,0.31016669]
[1744928354291,0.33694425,593.57,591.74,0.33798627]
[1744928354493,0.29772798,593.56,591.75,0.31016669]
[1744928354796,0.33696128,593.54,591.77,0.33796914]
[1744928354994,0.29772798,593.53,591.78,0.31016669]
[1744928355191,0.33697831,593.51,591.79,0.33795772]
[1744928355392,0.29772798,593.5,591.8,0.31016669]
[1744928355591,0.33699534,593.48,591.81,0.3379463]
[1744928355795,0.29772798,593.47,591.82,0.31016669]
[1744928355997,0.33701238,593.45,591.83,0.33793487]
[1744928356196,0.29772798,593.44,591.84,0.31016669]
[1744928356398,0.33702942,593.42,591.85,0.33792346]
[1744928356600,0.29772798,593.41,591.86,0.31016669]
[1744928356800,0.33704646,593.39,591.87,0.33791204]
[1744928357099,0.29772798,593.38,591.88,0.31016669]
[1744928357293,0.29772798,593.38,591.87,0.33791204]
[1744928357294,0.3370635,593.36,591.87,0.33791204]
[1744928357492,0.29799846,593.35,591.87,0.33791204]
[1744928357697,0.33708054,593.33,591.87,0.33791204]
[1744928357897,0.29799846,593.32,591.87,0.33791204]
[1744928358103,0.33709758,593.3,591.87,0.33791204]
[1744928358299,0.29799846,593.29,591.87,0.33791204]
[1744928358501,0.33711463,593.27,591.87,0.33791204]
[1744928358702,0.29799846,593.26,591.87,0.33791204]
[1744928358903,0.33713168,593.24,591.88,0.826]
[1744928359202,0.29799846,593.23,591.88,0.826]
[1744928359500,0.33714873,593.21,591.88,0.826]
[1744928359703,0.29799846,593.2,591.88,0.826]
[1744928359898,0.33716578,593.18,591.88,0.826]
[1744928360106,0.29799846,593.17,591.88,0.826]
[1744928360304,0.33718283,593.15,591.88,0.826]
[1744928360501,0.29799846,593.14,591.88,0.826]
[1744928360704,0.33719989,593.12,591.88,0.826]
[1744928361000,0.29799846,593.11,591.89,0.203]
[1744928361201,0.33721694,593.09,591.89,0.203]
[1744928361407,0.29799846,593.08,591.89,0.203]
[1744928361605,0.337234,593.06,591.89,0.203]
[1744928361806,0.29799846,593.05,591.89,0.203]
[1744928362002,0.33725106,593.03,591.89,0.203]
[1744928362306,0.29799846,593.02,591.9,0.154]
[1744928362503,0.33726812,593.0,591.9,0.154]
[1744928362707,0.29799846,592.99,591.9,0.154]
[1744928363304,0.33728519,592.97,591.9,0.154]
[1744928363507,0.29799846,592.96,591.9,0.154]
[1744928363708,0.33730225,592.94,591.9,0.154]
[1744928363910,0.29799846,592.93,591.9,0.154]
[1744928364104,0.33731363,592.92,591.9,0.154]
[1744928364303,0.29799846,592.91,591.9,0.154]
[1744928364506,0.33732501,592.9,591.9,0.154]
[1744928364703,0.33732501,592.9,591.9,0.964]
[1744928364704,0.29799846,592.89,591.9,0.964]
[1744928364903,0.33733639,592.88,591.9,0.964]
[1744928365208,0.29799846,592.87,591.9,0.964]
[1744928365403,0.33734777,592.86,591.9,0.964]
[1744928365609,0.29799846,592.85,591.9,0.964]
[1744928365810,0.33735915,592.84,591.9,0.964]
[1744928366109,0.29799846,592.83,591.9,0.964]
[1744928366306,0.33737053,592.82,591.9,0.964]
[1744928366510,0.29799846,592.81,591.9,0.964]
[1744928366710,0.33738191,592.8,591.9,0.964]
[1744928367010,0.29799846,592.79,591.9,0.964]
[1744928367210,0.33739329,592.78,591.9,0.964]
[1744928367411,0.29799846,592.77,591.9,0.964]
[1744928367603,0.33740468,592.76,591.9,0.964]
[1744928367808,0.29799846,592.75,591.9,0.964]
[1744928368009,0.33741606,592.74,591.9,0.964]
[1744928368308,0.29799846,592.73,591.9,0.964]
[1744928369411,0.63542022,592.73,591.9,0.964]
[1744928369607,0.33742745,592.72,591.9,0.964]
[1744928370611,0.29816142,592.71,591.9,0.964]
[1744928370911,0.33743883,592.7,591.9,0.964]
[1744928372713,0.33743883,592.7,591.9,1.626]
[1744928375415,0.33743883,592.7,591.9,2.384]
[1744928381025,0.2980678,592.69,591.9,2.384]
[1744928382422,0.33743883,592.7,591.9,2.384]
[1744928382620,0.29806801,592.69,591.9,2.384]
[1744928384126,0.29806833,592.68,591.9,2.384]
[1744928384320,0.29806833,592.69,591.9,2.384]
[1744928384522,0.29806833,592.68,591.9,3.206]
[1744928384719,0.29806833,592.69,591.9,3.206]
[1744928384926,0.29806833,592.68,591.9,3.206]
[1744928385125,0.29806833,592.69,591.9,3.206]
[1744928385423,0.29806833,592.69,591.9,3.409]
[1744928385622,0.29807066,592.68,591.9,3.409]
[1744928385922,0.29807066,592.67,591.9,3.409]
[1744928386223,0.29807066,592.66,591.9,3.409]
[1744928386422,0.29807066,592.65,591.9,3.409]
[1744928386627,0.29807066,592.64,591.9,4.361]
[1744928386827,0.29807066,592.69,591.9,4.361]
[1744928387028,0.29807066,592.68,591.9,4.361]
[1744928387229,0.29807066,592.69,591.9,4.361]
[1744928387423,0.29807066,592.67,591.9,4.361]
[1744928387623,0.29807066,592.66,591.9,4.361]
[1744928387831,0.29807066,592.69,591.9,4.361]
[1744928392436,0.33743883,592.7,591.9,4.361]
[1744928393334,0.29800956,592.69,591.9,4.361]
[1744928394038,0.33743883,592.7,591.9,4.361]
[1744928394235,0.29800997,592.69,591.9,4.361]
[1744928397236,0.33743883,592.7,591.9,4.361]
[1744928397439,0.29801782,592.69,591.9,4.361]
[1744928404947,0.33743883,592.7,591.9,4.361]
[1744928405146,0.29808636,592.69,591.9,4.361]
[1744928406555,0.33743883,592.7,591.9,4.361]
[1744928406752,0.29809208,592.69,591.9,4.361]
[1744928409755,0.33743883,592.7,591.9,4.361]
[1744928409955,0.29808711,592.69,591.9,4.361]
[1744928411458,0.33743883,592.7,591.9,4.361]
[1744928411655,0.29808758,592.69,591.9,4.361]
[1744928413060,0.33743883,592.7,591.9,4.361]
[1744928413257,0.29809,592.69,591.9,4.361]
[1744928414661,0.33743883,592.7,591.9,4.361]
[1744928414860,0.29809018,592.69,591.9,4.361]
[1744928416253,1.28609018,592.69,591.9,4.361]
[1744928416454,0.29809238,592.68,591.9,4.361]
[1744928417957,0.988,592.69,591.9,4.361]
[1744928418162,0.29809232,592.68,591.9,4.361]
[1744928419562,0.988,592.69,591.9,4.361]
[1744928419764,0.29807919,592.68,591.9,4.361]
[1744928421263,0.988,592.69,591.9,4.361]
[1744928421465,0.29807855,592.67,591.9,4.361]
[1744928421662,0.29807855,592.66,591.9,4.361]
[1744928421864,0.29807855,592.68,591.9,4.361]
[1744928422062,0.29807855,592.65,591.9,4.361]
[1744928422258,0.29807855,592.64,591.9,4.361]
[1744928422465,0.29807855,592.63,591.9,4.361]
[1744928422657,0.29807855,592.68,591.9,4.361]
[1744928422862,0.988,592.69,591.9,4.361]
[1744928423060,0.29808027,592.68,591.9,4.361]
[1744928427869,0.298093,592.67,591.9,4.361]
[1744928428065,0.298093,592.68,591.9,4.361]
[1744928428972,0.33745591,592.67,591.9,4.361]
[1744928429169,0.298093,592.66,591.9,4.361]
[1744928429364,0.3374673,592.65,591.9,4.361]
[1744928429567,0.298093,592.64,591.9,4.361]
[1744928431171,0.29816105,592.63,591.9,4.361]
[1744928431373,0.29816105,592.64,591.9,4.361]
[1744928431672,0.29816105,592.63,591.9,4.361]
[1744928431966,0.29816105,592.62,591.9,4.361]
[1744928432166,0.29816105,592.64,591.9,4.361]
[1744928432369,0.33747869,592.63,591.9,4.361]
[1744928432670,0.29816105,592.62,591.9,4.361]
[1744928432866,0.33749008,592.61,591.9,4.361]
[1744928433073,0.29816105,592.6,591.9,4.361]
[1744928433272,0.33750147,592.59,591.9,4.361]
[1744928433465,0.29816105,592.58,591.9,4.361]
[1744928433670,0.33751286,592.57,591.9,4.361]
[1744928433867,0.29816105,592.56,591.9,4.361]
[1744928434267,0.33751286,592.57,591.9,4.361]
[1744928434473,0.29816387,592.56,591.9,4.361]
[1744928437577,0.33751286,592.57,591.9,4.361]
[1744928437875,0.29816506,592.56,591.9,4.361]
[1744928439176,0.33751286,592.57,591.9,4.361]
[1744928439370,0.29816343,592.56,591.9,4.361]
[1744928440776,0.33751286,592.57,591.9,4.361]
[1744928440976,0.29816126,592.56,591.9,4.361]
[1744928441673,0.926,592.55,591.9,4.361]
[1744928441876,0.29816126,592.54,591.9,4.361]
[1744928443677,0.33753565,592.53,591.9,4.361]
[1744928443876,0.29816126,592.52,591.9,4.361]
[1744928444076,0.33754704,592.51,591.9,4.361]
[1744928444278,0.29816126,592.5,591.9,4.361]
[1744928444477,0.33755843,592.49,591.9,4.361]
[1744928444878,0.29816126,592.48,591.9,4.361]
[1744928445079,0.33755843,592.49,591.9,4.361]
[1744928446182,0.2981588,592.48,591.9,4.361]
[1744928454089,0.29817315,592.47,591.9,4.361]
[1744928454283,0.29817315,592.48,591.9,4.361]
[1744928454585,0.63574298,592.47,591.9,4.361]
[1744928454786,0.63574868,592.46,591.9,4.361]
[1744928455087,0.63575438,592.45,591.9,4.361]
[1744928455386,0.63576007,592.44,591.9,4.361]
[1744928455585,0.33759262,592.43,591.9,4.361]
[1744928455785,0.29813182,592.42,591.9,4.361]
[1744928455981,0.33760402,592.41,591.9,4.361]
[1744928456186,0.29813182,592.4,591.9,4.361]
[1744928457283,0.33760402,592.41,591.9,4.361]
[1744928457484,0.29812412,592.4,591.9,4.361]
[1744928457988,0.33761542,592.39,591.9,4.361]
[1744928458384,0.29812412,592.38,591.9,4.361]
[1744928458588,0.33762682,592.37,591.9,4.361]
[1744928458782,0.29812412,592.36,591.9,4.361]
[1744928458988,0.63574149,592.35,591.9,4.361]
[1744928459288,0.29810327,592.34,591.17,0.29402446]
[1744928459482,0.33764962,592.33,591.17,0.29402446]
[1744928459684,0.29810327,592.32,591.17,0.29402446]
[1744928460086,0.33766102,592.31,591.17,0.29402446]
[1744928460288,0.29810327,592.3,590.55,1.0737204]
[1744928460487,0.29810327,592.3,590.57,0.33865587]
[1744928460692,0.29810327,592.3,590.58,0.31059853]
[1744928460891,0.29810327,592.3,590.6,0.33863867]
[1744928461094,0.29810327,592.3,590.61,0.31059853]
[1744928461287,0.29810327,592.3,590.63,0.33862147]
[1744928461486,0.63576999,592.3,590.64,0.31059853]
[1744928461690,0.29810327,592.29,590.66,0.33860427]
[1744928461890,0.29810327,592.29,590.67,0.31059853]
[1744928462303,0.29810327,592.29,590.69,0.33858707]
[1744928462496,0.29810327,592.29,590.7,0.31059853]
[1744928463092,0.29810327,592.29,590.72,0.33856988]
[1744928463291,0.29810327,592.29,590.73,0.31059853]
[1744928463494,0.29810327,592.29,590.75,0.33855268]
[1744928463694,0.29810327,592.29,590.76,0.31059853]
[1744928463895,0.29810327,592.29,590.78,0.33853549]
[1744928464093,0.29810327,592.29,590.79,0.31059853]
[1744928464688,0.29810327,592.29,590.81,0.3385183]
[1744928464889,0.33766672,592.3,590.81,0.3385183]
[1744928465089,0.29807512,592.28,590.82,0.3105928]
[1744928465294,0.29807512,592.27,590.84,0.33850111]
[1744928465494,0.29807512,592.29,590.85,0.3105928]
[1744928465695,0.29807512,592.28,590.87,0.33848393]
[1744928465894,0.29807512,592.29,590.88,0.3105928]
[1744928466093,0.29807512,592.28,590.89,0.33847247]
[1744928466291,0.29807512,592.29,590.9,0.3105928]
[1744928466497,0.986,592.27,590.91,0.33846101]
[1744928466693,0.29807512,592.26,590.92,0.3105928]
[1744928466894,0.29807512,592.26,590.93,0.33844956]
[1744928467198,0.29807512,592.26,590.94,0.3105928]
[1744928467396,0.986,592.27,590.95,0.3384381]
[1744928467594,0.29809267,592.26,590.96,0.31059051]
[1744928467798,0.29809267,592.26,590.97,0.33842665]
[1744928467999,0.29809267,592.26,590.98,0.31059051]
[1744928468199,0.29809267,592.26,590.99,0.3384152]
[1744928468397,0.29809267,592.26,591.0,0.31059051]
[1744928468601,0.29809267,592.26,591.01,0.33840374]
[1744928468800,0.29809267,592.26,591.02,0.31059051]
[1744928469003,0.29809267,592.26,591.03,0.33839229]
[1744928469198,0.29809267,592.26,591.04,0.31059051]
[1744928469402,0.29809267,592.26,591.05,0.33838084]
[1744928469603,0.29809267,592.26,591.06,0.31059051]
[1744928469804,0.29809267,592.26,591.07,0.33836939]
[1744928471407,0.986,592.27,591.07,0.33836939]
[1744928471609,0.29810505,592.26,591.07,0.33836939]
[1744928474711,0.986,592.27,591.07,0.33836939]
[1744928474914,0.29810845,592.26,591.07,0.33836939]
[1744928476314,0.986,592.27,591.07,0.33836939]
[1744928476510,0.298109,592.26,591.07,0.33836939]
[1744928479411,0.298109,592.26,591.08,1.039]
[1744928479616,0.298109,592.26,591.09,0.33835794]
[1744928481011,0.298109,592.26,591.1,0.586]
[1744928481316,0.986,592.27,591.11,0.3383465]
[1744928481517,0.29811663,592.26,591.11,0.3383465]
[1744928483012,0.986,592.27,591.11,0.3383465]
[1744928483217,0.29811482,592.26,591.11,0.3383465]
[1744928484320,0.29811482,592.26,591.12,1.003]
[1744928484520,0.29811482,592.26,591.12,1.54434077]
[1744928486319,0.986,592.27,591.12,1.54434077]
[1744928486515,0.29811162,592.26,591.12,1.54434077]
[1744928487019,0.29811162,592.26,591.13,0.154]
[1744928488221,0.986,592.27,591.13,0.154]
[1744928489520,0.33766672,592.3,591.13,0.154]
[1744928490816,0.29810528,592.29,591.13,0.154]
[1744928491224,0.33766672,592.3,591.13,0.154]
[1744928491425,0.29811953,592.29,591.13,0.154]
[1744928492322,0.853,592.28,591.13,0.154]
[1744928492725,0.853,592.28,591.14,0.33832932]
[1744928494126,0.853,592.28,591.15,0.773]
[1744928494524,0.853,592.28,591.16,0.33831788]
[1744928496528,0.2981216,592.27,591.16,0.33831788]
[1744928501428,0.2981216,592.27,591.16,0.97931788]
[1744928505826,0.853,592.28,591.16,0.97931788]
[1744928506129,0.29809038,592.27,591.16,1.96831788]
[1744928509734,0.29805213,592.26,591.16,1.96831788]
[1744928509936,0.29805213,592.27,591.16,1.96831788]
[1744928510135,0.29805213,592.26,591.16,1.96831788]
[1744928510330,0.29805213,592.27,591.16,1.96831788]
[1744928510635,0.29805213,592.26,591.16,1.96831788]
[1744928510935,0.29805213,592.25,591.16,1.96831788]
[1744928511135,0.29805213,592.24,591.16,1.96831788]
[1744928511431,0.29805213,592.23,591.16,1.96831788]
[1744928511634,0.29805213,592.27,591.16,1.96831788]
[1744928512935,0.853,592.28,591.16,1.96831788]
[1744928513137,0.29806009,592.27,591.16,1.96831788]
[1744928514640,0.853,592.28,591.16,2.12231788]
[1744928514641,0.29806232,592.26,591.16,2.12231788]
[1744928514939,0.29806232,592.25,591.16,2.12231788]
[1744928515236,0.853,592.28,591.16,2.12231788]
[1744928515536,0.29809481,592.27,591.16,2.12231788]
[1744928516237,0.29809481,592.27,591.16,2.32531788]
[1744928519539,0.853,592.28,591.16,2.32531788]
[1744928519738,0.29808646,592.27,591.16,2.32531788]
[1744928522538,0.29808646,592.29,591.16,2.32531788]
[1744928522736,0.29808646,592.28,591.16,2.32531788]
[1744928522942,0.29808646,592.29,591.16,2.32531788]
[1744928523138,0.29808646,592.28,591.16,2.32531788]
[1744928523339,0.29808646,592.29,591.16,2.32531788]
[1744928523639,0.29808646,592.28,591.16,2.32531788]
[1744928523843,0.29808646,592.29,591.16,2.32531788]
[1744928524043,0.29808646,592.27,591.16,2.32531788]
[1744928524245,0.29808646,592.26,591.16,2.32531788]
[1744928524441,0.29808646,592.29,591.16,2.32531788]
[1744928524642,0.33766672,592.3,591.16,2.32531788]
[1744928524643,0.29808646,592.28,591.16,2.32531788]
[1744928524939,0.29808646,592.27,591.16,2.32531788]
[1744928525138,0.29808646,592.26,591.16,2.32531788]
[1744928525341,0.29808646,592.29,591.16,2.32531788]
[1744928525540,0.29808646,592.28,591.16,3.09531788]
[1744928525740,0.87,592.28,591.16,3.09531788]
[1744928525941,0.29808646,592.27,591.16,3.09531788]
[1744928527043,0.29808646,592.27,591.16,3.82031788]
[1744928527447,0.29808904,592.26,591.16,3.82031788]
[1744928527648,0.29808904,592.27,591.16,3.82031788]
[1744928527847,0.29808904,592.26,591.16,3.82031788]
[1744928528143,0.29808904,592.25,591.16,3.82031788]
[1744928528348,0.29808904,592.27,591.16,3.82031788]
[1744928528542,0.29808904,592.26,591.16,3.82031788]
[1744928528747,0.29808904,592.25,591.16,3.82031788]
[1744928529042,0.29808904,592.24,591.16,3.82031788]
[1744928529248,0.29808904,592.27,591.16,3.82031788]
[1744928529441,0.29808904,592.26,591.16,3.82031788]
[1744928529645,0.29808904,592.27,591.16,3.82031788]
[1744928529946,0.29808904,592.26,591.16,3.82031788]
[1744928530146,0.29808904,592.27,591.16,3.82031788]
[1744928530341,0.29808904,592.26,591.16,3.82031788]
[1744928530542,0.29808904,592.27,591.16,3.82031788]
[1744928530747,0.29805206,592.26,591.16,3.82031788]
[1744928530950,0.29805206,592.27,591.16,3.82031788]
[1744928531144,0.29805206,592.25,591.16,3.82031788]
[1744928531342,0.29805206,592.24,591.16,3.82031788]
[1744928531648,0.29805206,592.23,591.16,3.82031788]
[1744928531848,0.29805206,592.27,591.16,3.82031788]
[1744928537051,0.29805206,592.27,591.16,4.46531788]
[1744928538853,0.33768952,592.26,591.16,4.46531788]
[1744928539052,0.29805206,592.25,591.16,4.46531788]
[1744928539254,0.63574729,592.25,591.16,4.46531788]
[1744928539447,0.63575299,592.24,591.16,4.46531788]
[1744928539749,0.63575869,592.23,591.16,4.46531788]
[1744928539953,0.29805206,592.22,591.16,4.46531788]
[1744928540750,0.33770663,592.23,591.16,4.46531788]
[1744928540955,0.29798363,592.22,591.16,4.46531788]
[1744928542458,0.33770663,592.23,591.16,4.46531788]
[1744928542654,0.29799275,592.21,591.16,4.46531788]
[1744928542852,0.29799275,592.2,591.16,4.46531788]
[1744928543055,0.29799275,592.22,591.16,4.46531788]
[1744928543254,0.29799275,592.21,591.16,4.46531788]
[1744928543457,0.29799275,592.22,591.16,4.46531788]
[1744928545258,0.63570508,592.22,591.16,4.46531788]
[1744928545450,0.29799275,592.21,591.16,4.46531788]
[1744928546453,0.33772374,592.2,591.16,4.46531788]
[1744928546660,0.29799275,592.19,591.16,4.46531788]
[1744928547859,0.29799275,592.19,591.16,4.127]
[1744928549962,0.33773514,592.18,591.16,4.127]
[1744928550162,0.29799275,592.17,591.16,4.127]
[1744928550463,0.33774655,592.16,591.16,4.127]
[1744928550863,0.29792706,592.15,591.16,4.127]
[1744928551064,0.33775796,592.14,591.16,4.127]
[1744928551363,0.29792706,592.13,591.16,4.127]
[1744928551567,0.33776937,592.12,591.16,4.127]
[1744928551760,0.29792706,592.11,591.16,4.127]
[1744928551963,0.33778078,592.1,591.16,4.127]
[1744928552162,0.29792706,592.09,591.16,4.127]
[1744928552365,0.33779219,592.08,591.16,4.127]
[1744928552665,0.29792355,592.07,591.16,4.127]
[1744928552864,0.63572144,592.07,591.16,4.127]
[1744928553066,0.29792355,592.06,591.16,4.127]
[1744928553467,0.668,592.05,591.16,4.127]
[1744928553664,0.29792355,592.04,591.16,4.127]
[1744928557271,0.668,592.05,591.16,4.127]
[1744928557565,0.29792036,592.04,591.16,4.127]
[1744928558568,0.33782071,592.03,591.16,4.127]
[1744928558765,0.29792036,592.02,591.16,4.127]
[1744928558968,0.63574678,592.02,591.16,4.127]
[1744928559168,0.29792036,592.01,591.16,4.127]
[1744928559569,0.33783783,592.0,591.16,4.127]
[1744928559871,0.29792036,591.99,591.16,4.127]
[1744928560070,0.33784925,591.98,591.16,4.127]
[1744928560269,0.29792036,591.97,591.16,4.127]
[1744928560465,0.33786066,591.96,591.16,4.127]
[1744928560666,0.63571956,591.96,591.16,4.127]
[1744928560871,0.2978589,591.95,591.16,4.127]
[1744928561170,0.33787208,591.94,591.16,4.127]
[1744928561465,0.2978589,591.93,591.16,4.127]
[1744928561770,0.63573668,591.93,591.16,4.127]
[1744928561970,0.2978589,591.92,591.16,4.127]
[1744928565472,0.29782796,591.91,591.16,4.127]
[1744928565670,0.29782796,591.92,591.16,4.127]
[1744928565869,0.29782796,591.91,591.16,4.127]
[1744928566071,0.2978273,591.9,591.16,4.127]
[1744928566272,0.2978273,591.92,591.16,4.127]
[1744928567179,0.29782759,591.91,591.16,4.127]
[1744928567478,0.29782759,591.9,591.16,4.127]
[1744928567679,0.29782759,591.92,591.16,4.127]
[1744928567879,0.29782759,591.89,591.16,4.127]
[1744928568079,0.29782759,591.88,591.16,4.127]
[1744928568285,0.29782759,591.9,591.16,4.127]
[1744928568579,0.29782759,591.89,591.16,4.127]
[1744928568781,0.29783026,591.88,591.16,4.127]
[1744928568981,0.29783026,591.87,591.16,4.127]
[1744928569179,0.3378892,591.91,591.16,4.127]
[1744928569180,0.33791775,591.86,591.16,4.127]
[1744928569380,0.29783026,591.85,591.16,4.127]
[1744928569583,0.33792917,591.84,591.16,4.127]
[1744928569878,0.29783026,591.83,591.16,4.127]
[1744928570078,0.33794059,591.82,591.16,4.127]
[1744928570277,0.29783026,591.81,591.16,4.127]
[1744928570482,0.33795201,591.8,591.16,4.127]
[1744928570784,0.29783026,591.79,591.16,4.127]
[1744928573584,0.33795201,591.8,591.16,4.127]
[1744928573779,0.29780797,591.79,591.16,4.127]
[1744928576988,0.33795201,591.8,591.16,4.127]
[1744928577187,0.29780752,591.79,591.16,4.127]
[1744928583186,0.33795201,591.8,591.16,4.127]
[1744928584192,0.659,591.79,591.16,4.127]
[1744928589894,0.29783284,591.78,591.16,4.127]
[1744928591394,0.659,591.79,591.16,4.127]
[1744928591596,0.29783575,591.78,591.16,4.127]
[1744928594600,0.659,591.79,591.16,4.127]
[1744928594800,0.29784389,591.78,591.16,4.127]
[1744928596201,0.659,591.79,591.16,4.127]
[1744928596401,0.29783244,591.78,591.16,4.127]
[1744928597805,0.659,591.79,591.16,4.127]
[1744928598102,0.2978154,591.78,591.16,4.127]
[1744928599407,0.659,591.79,591.16,4.127]
[1744928599609,0.29781882,591.78,591.16,4.127]
[1744928600609,0.659,591.79,591.16,4.127]
[1744928601309,0.29789097,591.78,591.16,4.127]
[1744928605810,0.29788343,591.77,591.16,4.127]
[1744928606009,0.29788343,591.76,591.16,4.127]
[1744928606210,0.29788343,591.78,591.16,4.127]
[1744928606407,0.29788343,591.77,591.16,4.127]
[1744928606612,0.29788343,591.78,591.16,4.127]
[1744928607310,0.659,591.79,591.16,4.127]
[1744928607508,0.29788372,591.78,591.16,4.127]
[1744928608911,0.659,591.79,591.16,4.127]
[1744928609116,0.2978817,591.78,591.16,4.127]
[1744928610518,0.33795201,591.8,591.16,4.127]
[1744928612517,0.832,591.79,591.16,4.127]
[1744928616926,0.29784353,591.78,591.16,4.127]
[1744928618430,0.832,591.79,591.16,4.127]
[1744928618629,0.29783913,591.78,591.16,4.127]
[1744928620029,0.832,591.79,591.16,4.127]
[1744928620230,0.29783147,591.78,591.16,4.127]
[1744928624733,0.832,591.79,591.16,4.127]
[1744928624932,0.2978331,591.78,591.16,4.127]
[1744928626439,0.832,591.79,591.16,4.127]
[1744928626731,0.29784735,591.78,591.16,4.127]
[1744928628038,0.832,591.79,591.16,4.127]
[1744928628334,0.29783387,591.78,591.16,4.127]
[1744928628731,0.29783387,591.77,591.16,4.127]
[1744928628933,0.29783387,591.76,591.16,4.127]
[1744928629237,0.29783387,591.75,591.16,4.127]
[1744928629435,0.29783387,591.79,591.16,4.127]
[1744928629638,0.29783387,591.78,591.16,4.127]
[1744928629839,0.29783387,591.77,591.16,4.127]
[1744928630039,0.29783387,591.79,591.16,4.127]
[1744928630334,0.33795201,591.8,591.16,4.127]
[1744928630335,0.29783387,591.78,591.16,4.127]
[1744928630538,0.29783387,591.77,591.16,4.127]
[1744928630734,0.29783387,591.76,591.16,4.127]
[1744928630940,0.29783387,591.79,591.16,4.127]
[1744928631139,0.29783387,591.75,591.16,4.127]
[1744928631339,0.29783387,591.74,591.16,4.127]
[1744928631540,0.29783387,591.79,591.16,4.127]
[1744928632637,0.807,591.78,591.16,4.127]
[1744928632837,0.29781938,591.77,591.16,4.127]
[1744928634342,0.29781938,591.76,591.16,4.127]
[1744928634538,0.29781938,591.77,591.16,4.127]
[1744928634739,0.29781938,591.76,591.16,4.127]
[1744928635036,0.29781938,591.75,591.16,4.127]
[1744928635241,0.807,591.78,591.16,4.127]
[1744928635242,0.29781938,591.77,591.16,4.127]
[1744928635441,0.29781938,591.76,591.16,4.127]
[1744928635642,0.29781938,591.75,591.16,4.127]
[1744928635836,0.29781938,591.77,591.16,4.127]
[1744928637642,0.29783052,591.76,591.16,4.127]
[1744928637843,0.807,591.78,591.16,4.127]
[1744928637844,0.29783052,591.77,591.16,4.127]
[1744928638043,0.29783052,591.76,591.16,4.127]
[1744928638343,0.29783052,591.75,591.16,4.127]
[1744928638544,0.29783052,591.77,591.16,4.127]
[1744928638746,0.29783052,591.76,591.16,4.127]
[1744928638947,0.29783052,591.77,591.16,4.127]
[1744928639242,0.29783052,591.76,591.16,4.127]
[1744928639438,0.29783052,591.77,591.16,4.127]
[1744928639644,0.29783052,591.76,591.16,4.127]
[1744928639948,0.29783052,591.77,591.16,4.127]
[1744928640150,0.29783052,591.76,591.16,4.127]
[1744928640351,0.29783052,591.77,591.16,4.127]
[1744928640550,0.807,591.78,591.16,4.127]
[1744928640752,0.29782386,591.76,591.16,4.127]